[Event "Titled Tuesday Blitz April 4 Early 2023"]
[White "Kiseleva, Arina"]
[Black "Kalajzic, Ivan"]
[WhiteFideId "4164989"]
[BlackFideId "14506378"]
[WhiteElo "1708"]
[BlackElo "2203"]
[Result "1-0"]
[Round "10"]
[TimeControl "180+2"]
[Date "2023.04.04"]
[WhiteClock "0:00:05"]
[BlackClock "0:00:08"]

1. d4 {[%clk 0:03:00]}  Nf6 {[%clk 0:02:57]} 2. Nf3 {[%clk 0:03:00]}  c5 {[%clk 0:02:57]} 3. e3 {[%clk 0:03:00]}  e6 {[%clk 0:02:56]} 4. Bd3 {[%clk 0:02:59]}  b6 {[%clk 0:02:56]} 5. O-O {[%clk 0:02:56]}  Bb7 {[%clk 0:02:56]} 6. Nbd2 {[%clk 0:02:56]}  d5 {[%clk 0:02:56]} 7. b3 {[%clk 0:02:55]}  Nc6 {[%clk 0:02:56]} 8. Bb2 {[%clk 0:02:54]}  Qc7 {[%clk 0:02:56]} 9. Ne5 {[%clk 0:02:37]}  Nd7 {[%clk 0:02:50]} 10. f4 {[%clk 0:02:30]}  cxd4 {[%clk 0:02:42]} 11. exd4 {[%clk 0:02:20]}  g6 {[%clk 0:02:38]} 12. Ndf3 {[%clk 0:02:06]}  Bg7 {[%clk 0:02:36]} 13. Nxd7 {[%clk 0:02:02]}  Qxd7 {[%clk 0:02:35]} 14. Ne5 {[%clk 0:02:02]}  Nxe5 {[%clk 0:02:33]} 15. fxe5 {[%clk 0:01:50]}  O-O {[%clk 0:02:34]} 16. Ba3 {[%clk 0:01:43]}  Rfe8 {[%clk 0:02:29]} 17. Rf4 {[%clk 0:01:37]}  Bc6 {[%clk 0:02:25]} 18. Qf3 {[%clk 0:01:32]}  Bf8 {[%clk 0:01:55]} 19. Bxf8 {[%clk 0:01:05]}  Rxf8 {[%clk 0:01:55]} 20. a4 {[%clk 0:01:05]}  Rac8 {[%clk 0:01:46]} 21. h4 {[%clk 0:01:02]}  h5 {[%clk 0:01:39]} 22. Rf6 {[%clk 0:00:58]}  Kg7 {[%clk 0:01:33]} 23. Rf1 {[%clk 0:00:49]}  Qe7 {[%clk 0:01:23]} 24. g4 {[%clk 0:00:42]}  hxg4 {[%clk 0:01:22]} 25. Qxg4 {[%clk 0:00:42]}  Rh8 {[%clk 0:01:11]} 26. Rxg6+ {[%clk 0:00:14]}  Kf8 {[%clk 0:01:11]} 27. Rg7 {[%clk 0:00:11]}  Be8 {[%clk 0:00:37]} 28. h5 {[%clk 0:00:10]}  Qb4 {[%clk 0:00:32]} 29. h6 {[%clk 0:00:09]}  Ke7 {[%clk 0:00:32]} 30. Qg5+ {[%clk 0:00:07]}  Kd7 {[%clk 0:00:32]} 31. Rgxf7+ {[%clk 0:00:04]}  Bxf7 {[%clk 0:00:30]} 32. Rxf7+ {[%clk 0:00:04]}  Kc6 {[%clk 0:00:28]} 33. Bb5+ {[%clk 0:00:04]}  Qxb5 {[%clk 0:00:28]} 34. axb5+ {[%clk 0:00:05]}  Kxb5 {[%clk 0:00:28]} 35. Rg7 {[%clk 0:00:04]}  Rxc2 {[%clk 0:00:26]} 36. Qg6 {[%clk 0:00:04]}  Rhc8 {[%clk 0:00:25]} 37. Qxe6 {[%clk 0:00:04]}  Ra2 {[%clk 0:00:22]} 38. Qxd5+ {[%clk 0:00:03]}  Kb4 {[%clk 0:00:21]} 39. Rg2 {[%clk 0:00:04]}  Rc1+ {[%clk 0:00:20]} 40. Kh2 {[%clk 0:00:04]}  Raa1 {[%clk 0:00:20]} 41. Qd6+ {[%clk 0:00:04]}  Kb5 {[%clk 0:00:19]} 42. Qd7+ {[%clk 0:00:04]}  Kb4 {[%clk 0:00:19]} 43. h7 {[%clk 0:00:04]}  Rh1+ {[%clk 0:00:18]} 44. Kg3 {[%clk 0:00:05]}  Raf1 {[%clk 0:00:18]} 45. Qe7+ {[%clk 0:00:05]}  Kb5 {[%clk 0:00:17]} 46. Rh2 {[%clk 0:00:06]}  Rhg1+ {[%clk 0:00:16]} 47. Kh3 {[%clk 0:00:06]}  Rf3+ {[%clk 0:00:16]} 48. Kh4 {[%clk 0:00:06]}  Rf4+ {[%clk 0:00:16]} 49. Kh5 {[%clk 0:00:06]}  Rf5+ {[%clk 0:00:12]} 50. Kh6 {[%clk 0:00:06]}  Rfg5 {[%clk 0:00:08]} 51. Qxg5 {[%clk 0:00:05]} 1-0


[Site "https://www.chess.com"]

[Event "Titled Tuesday Blitz April 4 Early 2023"]
[White "Thiel, Thomas"]
[Black "Sakun, Volodymyr"]
[WhiteFideId "4615964"]
[BlackFideId "14114062"]
[WhiteElo "2210"]
[BlackElo "2318"]
[Result "0-1"]
[Round "10"]
[TimeControl "180+2"]
[Date "2023.04.04"]
[WhiteClock "0:00:12"]
[BlackClock "0:00:54"]

1. e4 {[%clk 0:03:00]}  c5 {[%clk 0:02:59]} 2. Nc3 {[%clk 0:02:58]}  g6 {[%clk 0:02:59]} 3. d4 {[%clk 0:02:56]}  cxd4 {[%clk 0:02:59]} 4. Qxd4 {[%clk 0:02:56]}  Nf6 {[%clk 0:02:59]} 5. Be3 {[%clk 0:02:55]}  Nc6 {[%clk 0:02:59]} 6. Qd2 {[%clk 0:02:53]}  Bg7 {[%clk 0:02:59]} 7. f3 {[%clk 0:02:51]}  O-O {[%clk 0:02:58]} 8. Nge2 {[%clk 0:02:51]}  d5 {[%clk 0:02:58]} 9. exd5 {[%clk 0:02:46]}  Nb4 {[%clk 0:02:58]} 10. Nf4 {[%clk 0:02:41]}  Qa5 {[%clk 0:02:26]} 11. Bc4 {[%clk 0:02:32]}  Bf5 {[%clk 0:02:11]} 12. Bb3 {[%clk 0:02:31]}  Rac8 {[%clk 0:01:56]} 13. O-O {[%clk 0:02:27]}  Rfd8 {[%clk 0:01:52]} 14. Rad1 {[%clk 0:02:07]}  g5 {[%clk 0:01:41]} 15. Nd3 {[%clk 0:02:05]}  Nxd3 {[%clk 0:01:38]} 16. cxd3 {[%clk 0:02:05]}  h6 {[%clk 0:01:38]} 17. Qf2 {[%clk 0:01:53]}  b6 {[%clk 0:01:29]} 18. d4 {[%clk 0:01:42]}  b5 {[%clk 0:01:26]} 19. g4 {[%clk 0:01:22]}  Bg6 {[%clk 0:01:23]} 20. a3 {[%clk 0:01:11]}  Qb6 {[%clk 0:01:04]} 21. h3 {[%clk 0:01:04]}  a5 {[%clk 0:01:03]} 22. f4 {[%clk 0:01:02]}  gxf4 {[%clk 0:01:01]} 23. Qxf4 {[%clk 0:00:59]}  b4 {[%clk 0:00:59]} 24. axb4 {[%clk 0:00:59]}  Qxb4 {[%clk 0:00:59]} 25. Ba4 {[%clk 0:00:36]}  Qxb2 {[%clk 0:00:58]} 26. Nb5 {[%clk 0:00:24]}  Nxd5 {[%clk 0:00:56]} 27. Qf2 {[%clk 0:00:21]}  Qb4 {[%clk 0:00:55]} 28. Ra1 {[%clk 0:00:14]}  Nxe3 {[%clk 0:00:54]} 29. Qxe3 {[%clk 0:00:12]}  Rxd4 {[%clk 0:00:54]} 0-1


[Site "https://www.chess.com"]

[Event "Titled Tuesday Blitz April 4 Early 2023"]
[White "KorolDimitriy75"]
[Black "De Souza, Cristiano Gomes"]
[BlackFideId "2151758"]
[WhiteElo "2413"]
[BlackElo "2068"]
[Result "1/2-1/2"]
[Round "10"]
[TimeControl "180+2"]
[Date "2023.04.04"]
[WhiteClock "0:00:14"]
[BlackClock "0:00:48"]

1. d4 {[%clk 0:03:00]}  Nf6 {[%clk 0:02:59]} 2. c4 {[%clk 0:03:00]}  g6 {[%clk 0:03:00]} 3. Nc3 {[%clk 0:03:00]}  Bg7 {[%clk 0:03:00]} 4. e4 {[%clk 0:03:01]}  d6 {[%clk 0:03:01]} 5. Nf3 {[%clk 0:03:01]}  O-O {[%clk 0:03:02]} 6. Be2 {[%clk 0:03:02]}  e5 {[%clk 0:03:03]} 7. dxe5 {[%clk 0:03:02]}  dxe5 {[%clk 0:03:03]} 8. Qxd8 {[%clk 0:03:03]}  Rxd8 {[%clk 0:03:02]} 9. Bg5 {[%clk 0:03:04]}  Re8 {[%clk 0:03:02]} 10. O-O-O {[%clk 0:03:03]}  Na6 {[%clk 0:02:59]} 11. Ne1 {[%clk 0:03:03]}  Be6 {[%clk 0:02:58]} 12. f3 {[%clk 0:02:57]}  Nd7 {[%clk 0:02:53]} 13. Nc2 {[%clk 0:02:56]}  c6 {[%clk 0:02:52]} 14. Rd2 {[%clk 0:02:53]}  f6 {[%clk 0:02:49]} 15. Be3 {[%clk 0:02:51]}  Nb6 {[%clk 0:02:47]} 16. b3 {[%clk 0:02:43]}  Bf8 {[%clk 0:02:46]} 17. Rhd1 {[%clk 0:02:32]}  Kf7 {[%clk 0:02:44]} 18. Kb2 {[%clk 0:02:28]}  Be7 {[%clk 0:02:29]} 19. a3 {[%clk 0:02:22]}  Red8 {[%clk 0:02:27]} 20. Rxd8 {[%clk 0:02:19]}  Rxd8 {[%clk 0:02:26]} 21. Rxd8 {[%clk 0:02:19]}  Bxd8 {[%clk 0:02:25]} 22. c5 {[%clk 0:02:03]}  Nd7 {[%clk 0:02:19]} 23. Bxa6 {[%clk 0:01:50]}  bxa6 {[%clk 0:02:18]} 24. Nb4 {[%clk 0:01:51]}  Nb8 {[%clk 0:02:09]} 25. Na4 {[%clk 0:01:31]}  Ke7 {[%clk 0:02:04]} 26. Kc3 {[%clk 0:01:17]}  Kd7 {[%clk 0:02:04]} 27. Nb2 {[%clk 0:01:16]}  Kc7 {[%clk 0:01:54]} 28. Nc4 {[%clk 0:01:15]}  Bxc4 {[%clk 0:01:51]} 29. Kxc4 {[%clk 0:01:15]}  a5 {[%clk 0:01:41]} 30. Nd3 {[%clk 0:01:12]}  a6 {[%clk 0:01:35]} 31. g4 {[%clk 0:01:11]}  Kd7 {[%clk 0:01:31]} 32. g5 {[%clk 0:01:05]}  Ke6 {[%clk 0:01:30]} 33. gxf6 {[%clk 0:01:00]}  Bxf6 {[%clk 0:01:30]} 34. Bd2 {[%clk 0:00:46]}  Bd8 {[%clk 0:01:28]} 35. Bc3 {[%clk 0:00:46]}  Nd7 {[%clk 0:01:28]} 36. a4 {[%clk 0:00:37]}  g5 {[%clk 0:01:25]} 37. h3 {[%clk 0:00:33]}  h5 {[%clk 0:01:25]} 38. Bd2 {[%clk 0:00:25]}  g4 {[%clk 0:01:18]} 39. hxg4 {[%clk 0:00:25]}  hxg4 {[%clk 0:01:17]} 40. fxg4 {[%clk 0:00:26]}  Nf6 {[%clk 0:01:16]} 41. Nf2 {[%clk 0:00:24]}  Nh7 {[%clk 0:01:08]} 42. Nh3 {[%clk 0:00:15]}  Nf6 {[%clk 0:01:03]} 43. Nf2 {[%clk 0:00:15]}  Nh7 {[%clk 0:00:54]} 44. Nh3 {[%clk 0:00:15]}  Nf6 {[%clk 0:00:48]} 45. Nf2 {[%clk 0:00:14]} 1/2-1/2


[Site "https://www.chess.com"]

[Event "Titled Tuesday Blitz April 4 Early 2023"]
[White "Larina, Maria"]
[Black "Zaichenko, Daria"]
[WhiteFideId "24113182"]
[BlackFideId "4197453"]
[WhiteElo "1848"]
[BlackElo "2039"]
[Result "0-1"]
[Round "10"]
[TimeControl "180+2"]
[Date "2023.04.04"]
[WhiteClock "0:00:14"]
[BlackClock "0:01:19"]

1. e4 {[%clk 0:03:00]}  c5 {[%clk 0:03:00]} 2. Nc3 {[%clk 0:03:00]}  Nc6 {[%clk 0:02:59]} 3. g3 {[%clk 0:03:00]}  e5 {[%clk 0:02:53]} 4. Bg2 {[%clk 0:02:59]}  d6 {[%clk 0:02:53]} 5. d3 {[%clk 0:02:57]}  f5 {[%clk 0:02:53]} 6. f4 {[%clk 0:02:53]}  Nf6 {[%clk 0:02:53]} 7. Nf3 {[%clk 0:02:48]}  Nd4 {[%clk 0:02:53]} 8. O-O {[%clk 0:02:43]}  fxe4 {[%clk 0:02:32]} 9. dxe4 {[%clk 0:02:33]}  Bg4 {[%clk 0:02:32]} 10. h3 {[%clk 0:02:25]}  Nxf3+ {[%clk 0:02:31]} 11. Bxf3 {[%clk 0:02:26]}  Bxh3 {[%clk 0:02:31]} 12. Rf2 {[%clk 0:02:14]}  Be6 {[%clk 0:02:27]} 13. f5 {[%clk 0:02:11]}  Bf7 {[%clk 0:02:24]} 14. g4 {[%clk 0:02:09]}  h6 {[%clk 0:02:25]} 15. Be3 {[%clk 0:01:57]}  Be7 {[%clk 0:02:24]} 16. Qd2 {[%clk 0:01:51]}  Qd7 {[%clk 0:02:21]} 17. Rd1 {[%clk 0:01:46]}  O-O-O {[%clk 0:02:20]} 18. a4 {[%clk 0:01:42]}  a6 {[%clk 0:02:18]} 19. a5 {[%clk 0:01:38]}  Kb8 {[%clk 0:02:16]} 20. Na4 {[%clk 0:01:35]}  Qxa4 {[%clk 0:02:12]} 21. b3 {[%clk 0:01:33]}  Qc6 {[%clk 0:02:11]} 22. Qd3 {[%clk 0:01:29]}  d5 {[%clk 0:02:08]} 23. exd5 {[%clk 0:01:26]}  Bxd5 {[%clk 0:02:05]} 24. Qe2 {[%clk 0:01:21]}  Bxf3 {[%clk 0:02:03]} 25. Rxd8+ {[%clk 0:01:21]}  Rxd8 {[%clk 0:02:02]} 26. Rxf3 {[%clk 0:01:20]}  Nxg4 {[%clk 0:01:59]} 27. Bc1 {[%clk 0:01:08]}  h5 {[%clk 0:01:48]} 28. Rh3 {[%clk 0:01:04]}  Qd5 {[%clk 0:01:44]} 29. Rd3 {[%clk 0:00:40]}  Qc6 {[%clk 0:01:40]} 30. Rh3 {[%clk 0:00:39]}  Qd7 {[%clk 0:01:37]} 31. Rd3 {[%clk 0:00:29]}  Qxf5 {[%clk 0:01:37]} 32. Rxd8+ {[%clk 0:00:25]}  Bxd8 {[%clk 0:01:37]} 33. Qd2 {[%clk 0:00:24]}  Bc7 {[%clk 0:01:26]} 34. Ba3 {[%clk 0:00:23]}  e4 {[%clk 0:01:23]} 35. Qe2 {[%clk 0:00:16]}  e3 {[%clk 0:01:21]} 36. Bc1 {[%clk 0:00:15]}  Qf2+ {[%clk 0:01:21]} 37. Qxf2 {[%clk 0:00:14]}  exf2+ {[%clk 0:01:21]} 38. Kf1 {[%clk 0:00:15]}  Bg3 {[%clk 0:01:21]} 39. Kg2 {[%clk 0:00:14]}  h4 {[%clk 0:01:19]} 40. Bg5 {[%clk 0:00:14]}  h3+ {[%clk 0:01:19]} 41. Kf1 {[%clk 0:00:14]}  h2 {[%clk 0:01:19]} 0-1


[Site "https://www.chess.com"]

[Event "Titled Tuesday Blitz April 4 Early 2023"]
[White "Svicevic, Rastko"]
[Black "Simonovic, Miroslav"]
[WhiteFideId "916315"]
[BlackFideId "919152"]
[WhiteElo "2071"]
[BlackElo "2042"]
[Result "0-1"]
[Round "10"]
[TimeControl "180+2"]
[Date "2023.04.04"]
[WhiteClock "0:00:01"]
[BlackClock "0:00:43"]

1. e4 {[%clk 0:03:00]}  c5 {[%clk 0:02:59]} 2. Nc3 {[%clk 0:02:57]}  Nc6 {[%clk 0:03:00]} 3. Bb5 {[%clk 0:02:54]}  g6 {[%clk 0:03:00]} 4. h3 {[%clk 0:02:36]}  Bg7 {[%clk 0:02:59]} 5. Nf3 {[%clk 0:02:22]}  Nd4 {[%clk 0:02:52]} 6. O-O {[%clk 0:02:07]}  a6 {[%clk 0:02:46]} 7. Bc4 {[%clk 0:01:57]}  Nxf3+ {[%clk 0:02:39]} 8. Qxf3 {[%clk 0:01:56]}  e6 {[%clk 0:02:39]} 9. Re1 {[%clk 0:01:54]}  Ne7 {[%clk 0:02:39]} 10. a4 {[%clk 0:01:49]}  O-O {[%clk 0:02:37]} 11. a5 {[%clk 0:01:47]}  b5 {[%clk 0:02:30]} 12. axb6 {[%clk 0:01:44]}  Qxb6 {[%clk 0:02:30]} 13. d3 {[%clk 0:01:17]}  h6 {[%clk 0:02:28]} 14. Na4 {[%clk 0:01:04]}  Qc7 {[%clk 0:02:28]} 15. Bf4 {[%clk 0:01:02]}  d6 {[%clk 0:02:28]} 16. c3 {[%clk 0:01:02]}  Bb7 {[%clk 0:02:26]} 17. Qg3 {[%clk 0:01:02]}  Rad8 {[%clk 0:02:23]} 18. Rad1 {[%clk 0:01:01]}  Qc6 {[%clk 0:02:12]} 19. Bb3 {[%clk 0:00:55]}  d5 {[%clk 0:02:12]} 20. exd5 {[%clk 0:00:50]}  Nxd5 {[%clk 0:02:12]} 21. Be5 {[%clk 0:00:46]}  Bxe5 {[%clk 0:01:24]} 22. Rxe5 {[%clk 0:00:41]}  Kg7 {[%clk 0:01:12]} 23. c4 {[%clk 0:00:31]}  Nf4 {[%clk 0:01:03]} 24. Nxc5 {[%clk 0:00:19]}  Qxg2+ {[%clk 0:01:03]} 25. Qxg2 {[%clk 0:00:18]}  Bxg2 {[%clk 0:01:03]} 26. Ne4 {[%clk 0:00:11]}  g5 {[%clk 0:01:01]} 27. Ra5 {[%clk 0:00:10]}  Bxe4 {[%clk 0:00:59]} 28. dxe4 {[%clk 0:00:10]}  Rxd1+ {[%clk 0:00:52]} 29. Bxd1 {[%clk 0:00:11]}  Nxh3+ {[%clk 0:00:43]} 30. Kh2 {[%clk 0:00:09]}  Nxf2 {[%clk 0:00:43]} 31. Bc2 {[%clk 0:00:04]}  Rd8 {[%clk 0:00:42]} 32. Rxa6 {[%clk 0:00:04]}  Rd2 {[%clk 0:00:43]} 33. Ba4 {[%clk 0:00:01]}  Rxb2 {[%clk 0:00:43]} 34. c5 {[%clk 0:00:01]}  Nxe4+ {[%clk 0:00:43]} 35. Kg1 {[%clk 0:00:01]}  Nxc5 {[%clk 0:00:43]} 0-1


[Site "https://www.chess.com"]

[Event "Titled Tuesday Blitz April 4 Early 2023"]
[White "Floresvillar Gonzalez, Luis Migu"]
[Black "dDobravcan"]
[WhiteFideId "5100542"]
[WhiteElo "2040"]
[BlackElo "2146"]
[Result "0-1"]
[Round "10"]
[TimeControl "180+2"]
[Date "2023.04.04"]
[WhiteClock "0:00:01"]
[BlackClock "0:00:38"]

1. e4 {[%clk 0:03:00]}  d6 {[%clk 0:03:00]} 2. d4 {[%clk 0:02:59]}  Nf6 {[%clk 0:03:00]} 3. Nc3 {[%clk 0:02:58]}  c6 {[%clk 0:03:00]} 4. Bg5 {[%clk 0:02:56]}  Qb6 {[%clk 0:02:56]} 5. Rb1 {[%clk 0:02:22]}  Nbd7 {[%clk 0:02:55]} 6. Nf3 {[%clk 0:02:16]}  h6 {[%clk 0:02:53]} 7. Be3 {[%clk 0:02:16]}  Ng4 {[%clk 0:02:51]} 8. Bd2 {[%clk 0:02:02]}  e5 {[%clk 0:02:48]} 9. Na4 {[%clk 0:01:50]}  Qc7 {[%clk 0:02:41]} 10. h3 {[%clk 0:01:48]}  Ngf6 {[%clk 0:02:41]} 11. Nc3 {[%clk 0:01:46]}  b5 {[%clk 0:02:39]} 12. a3 {[%clk 0:01:45]}  Be7 {[%clk 0:02:37]} 13. Bd3 {[%clk 0:01:43]}  O-O {[%clk 0:02:37]} 14. O-O {[%clk 0:01:43]}  a6 {[%clk 0:02:31]} 15. Re1 {[%clk 0:01:34]}  Re8 {[%clk 0:02:30]} 16. Ne2 {[%clk 0:01:24]}  Bf8 {[%clk 0:02:25]} 17. c3 {[%clk 0:01:24]}  g6 {[%clk 0:02:04]} 18. Ng3 {[%clk 0:01:20]}  Bg7 {[%clk 0:02:04]} 19. Qc1 {[%clk 0:01:16]}  Kh7 {[%clk 0:02:03]} 20. Re2 {[%clk 0:01:06]}  c5 {[%clk 0:01:49]} 21. d5 {[%clk 0:01:03]}  c4 {[%clk 0:01:49]} 22. Bc2 {[%clk 0:01:00]}  Nc5 {[%clk 0:01:50]} 23. Ne1 {[%clk 0:00:46]}  Bd7 {[%clk 0:01:45]} 24. Be3 {[%clk 0:00:43]}  Re7 {[%clk 0:01:43]} 25. f3 {[%clk 0:00:40]}  Rf8 {[%clk 0:01:42]} 26. Qd2 {[%clk 0:00:27]}  Ng8 {[%clk 0:01:39]} 27. Nf1 {[%clk 0:00:19]}  Kh8 {[%clk 0:01:37]} 28. g4 {[%clk 0:00:18]}  f5 {[%clk 0:01:34]} 29. gxf5 {[%clk 0:00:15]}  gxf5 {[%clk 0:01:33]} 30. Kh2 {[%clk 0:00:15]}  f4 {[%clk 0:01:27]} 31. Bf2 {[%clk 0:00:14]}  Nf6 {[%clk 0:01:16]} 32. Bh4 {[%clk 0:00:13]}  Qc8 {[%clk 0:01:12]} 33. Bxf6 {[%clk 0:00:10]}  Bxf6 {[%clk 0:01:08]} 34. Rg2 {[%clk 0:00:08]}  Bxh3 {[%clk 0:01:05]} 35. Rg1 {[%clk 0:00:08]}  Rg8 {[%clk 0:01:01]} 36. Qf2 {[%clk 0:00:08]}  Rxg1 {[%clk 0:00:58]} 37. Qxg1 {[%clk 0:00:08]}  Rg7 {[%clk 0:00:58]} 38. Qf2 {[%clk 0:00:07]}  Bd7 {[%clk 0:00:55]} 39. Nd2 {[%clk 0:00:06]}  Qg8 {[%clk 0:00:52]} 40. Ng2 {[%clk 0:00:06]}  h5 {[%clk 0:00:47]} 41. Rh1 {[%clk 0:00:05]}  Rg3 {[%clk 0:00:43]} 42. Kg1 {[%clk 0:00:04]}  Qg5 {[%clk 0:00:43]} 43. Kf1 {[%clk 0:00:03]}  Bh3 {[%clk 0:00:39]} 44. Rg1 {[%clk 0:00:01]}  h4 {[%clk 0:00:38]} 0-1


[Site "https://www.chess.com"]

[Event "Titled Tuesday Blitz April 4 Early 2023"]
[White "Lwanga, Aguda"]
[Black "Brahami, Lamine"]
[WhiteFideId "10801529"]
[BlackFideId "7905637"]
[WhiteElo "1475"]
[BlackElo "2088"]
[Result "0-1"]
[Round "10"]
[TimeControl "180+2"]
[Date "2023.04.04"]
[WhiteClock "0:00:09"]
[BlackClock "0:01:56"]

1. e4 {[%clk 0:01:44]}  c5 {[%clk 0:02:55]} 2. Nf3 {[%clk 0:01:43]}  d6 {[%clk 0:02:55]} 3. d4 {[%clk 0:01:43]}  cxd4 {[%clk 0:02:56]} 4. Nxd4 {[%clk 0:01:43]}  Nf6 {[%clk 0:02:57]} 5. Nc3 {[%clk 0:01:43]}  a6 {[%clk 0:02:57]} 6. f3 {[%clk 0:01:43]}  e5 {[%clk 0:02:57]} 7. Nb3 {[%clk 0:01:42]}  Be6 {[%clk 0:02:57]} 8. Be3 {[%clk 0:01:42]}  Be7 {[%clk 0:02:57]} 9. Qd2 {[%clk 0:01:43]}  Nbd7 {[%clk 0:02:58]} 10. O-O-O {[%clk 0:01:43]}  b5 {[%clk 0:02:58]} 11. Kb1 {[%clk 0:01:42]}  O-O {[%clk 0:02:58]} 12. g4 {[%clk 0:01:41]}  Nb6 {[%clk 0:02:58]} 13. h4 {[%clk 0:01:41]}  Nc4 {[%clk 0:02:58]} 14. Bxc4 {[%clk 0:01:42]}  bxc4 {[%clk 0:02:59]} 15. Nc1 {[%clk 0:01:42]}  Rb8 {[%clk 0:02:59]} 16. h5 {[%clk 0:01:42]}  Nd7 {[%clk 0:02:54]} 17. g5 {[%clk 0:01:40]}  Qc7 {[%clk 0:02:50]} 18. g6 {[%clk 0:01:39]}  Qb7 {[%clk 0:02:49]} 19. b3 {[%clk 0:01:38]}  Rfc8 {[%clk 0:02:47]} 20. h6 {[%clk 0:01:37]}  fxg6 {[%clk 0:02:41]} 21. hxg7 {[%clk 0:01:33]}  cxb3 {[%clk 0:02:35]} 22. cxb3 {[%clk 0:01:24]}  Nf6 {[%clk 0:02:34]} 23. Rh2 {[%clk 0:01:07]}  Qb4 {[%clk 0:02:32]} 24. N3e2 {[%clk 0:00:50]}  Qxd2 {[%clk 0:02:30]} 25. Bxd2 {[%clk 0:00:40]}  d5 {[%clk 0:02:22]} 26. exd5 {[%clk 0:00:36]}  Bxd5 {[%clk 0:02:23]} 27. f4 {[%clk 0:00:34]}  Be4+ {[%clk 0:02:18]} 28. Kb2 {[%clk 0:00:30]}  Rc2+ {[%clk 0:02:15]} 29. Ka1 {[%clk 0:00:27]}  Rd8 {[%clk 0:02:13]} 30. Ng3 {[%clk 0:00:20]}  exf4 {[%clk 0:02:05]} 31. Nxe4 {[%clk 0:00:16]}  Nxe4 {[%clk 0:02:05]} 32. Rdh1 {[%clk 0:00:12]}  Bf6+ {[%clk 0:02:01]} 33. Kb1 {[%clk 0:00:10]}  Rb2+ {[%clk 0:02:01]} 34. Ka1 {[%clk 0:00:09]}  Rxb3+ {[%clk 0:01:56]} 0-1


[Site "https://www.chess.com"]

[Event "Titled Tuesday Blitz April 4 Early 2023"]
[White "Sanchez, Robert"]
[Black "Odeh, Kenneth"]
[WhiteFideId "2034360"]
[BlackFideId "8500142"]
[WhiteElo "2023"]
[BlackElo "2031"]
[Result "0-1"]
[Round "10"]
[TimeControl "180+2"]
[Date "2023.04.04"]
[WhiteClock "0:02:47"]
[BlackClock "0:02:42"]

1. e4 {[%clk 0:03:00]}  c6 {[%clk 0:02:54]} 2. d4 {[%clk 0:02:51]}  d5 {[%clk 0:02:54]} 3. e5 {[%clk 0:02:52]}  c5 {[%clk 0:02:54]} 4. dxc5 {[%clk 0:02:51]}  Nc6 {[%clk 0:02:54]} 5. Nf3 {[%clk 0:02:50]}  Bg4 {[%clk 0:02:53]} 6. Bb5 {[%clk 0:02:49]}  a6 {[%clk 0:02:51]} 7. Bxc6+ {[%clk 0:02:48]}  bxc6 {[%clk 0:02:51]} 8. b4 {[%clk 0:02:49]}  e6 {[%clk 0:02:45]} 9. h3 {[%clk 0:02:48]}  Bxf3 {[%clk 0:02:45]} 10. Qxf3 {[%clk 0:02:48]}  Ne7 {[%clk 0:02:45]} 11. Bg5 {[%clk 0:02:47]}  Qc7 {[%clk 0:02:44]} 12. Bxe7 {[%clk 0:02:47]}  Qxe5+ {[%clk 0:02:42]} 0-1


[Site "https://www.chess.com"]

[Event "Titled Tuesday Blitz April 4 Early 2023"]
[White "Andreikin, Dmitry"]
[Black "Korobov, Anton"]
[WhiteFideId "4158814"]
[BlackFideId "14105730"]
[WhiteElo "2736"]
[BlackElo "2638"]
[Result "1-0"]
[Round "11"]
[TimeControl "180+2"]
[Date "2023.04.04"]
[WhiteClock "0:00:08"]
[BlackClock "0:00:09"]

1. Nf3 {[%clk 0:03:00]}  d5 {[%clk 0:02:58]} 2. d4 {[%clk 0:02:58]}  Nf6 {[%clk 0:02:57]} 3. c4 {[%clk 0:02:58]}  c6 {[%clk 0:02:56]} 4. Qc2 {[%clk 0:02:52]}  e6 {[%clk 0:02:47]} 5. Bg5 {[%clk 0:02:47]}  h6 {[%clk 0:02:45]} 6. Bxf6 {[%clk 0:02:47]}  Qxf6 {[%clk 0:02:46]} 7. Nbd2 {[%clk 0:02:47]}  Nd7 {[%clk 0:02:41]} 8. e3 {[%clk 0:02:44]}  g6 {[%clk 0:02:36]} 9. Be2 {[%clk 0:02:41]}  Bg7 {[%clk 0:02:36]} 10. O-O {[%clk 0:02:42]}  O-O {[%clk 0:02:36]} 11. Rfd1 {[%clk 0:02:42]}  Qe7 {[%clk 0:02:25]} 12. Rac1 {[%clk 0:02:40]}  dxc4 {[%clk 0:02:06]} 13. Nxc4 {[%clk 0:02:35]}  b6 {[%clk 0:02:05]} 14. Nce5 {[%clk 0:02:27]}  Nxe5 {[%clk 0:01:36]} 15. Nxe5 {[%clk 0:02:28]}  c5 {[%clk 0:01:37]} 16. Bf3 {[%clk 0:02:21]}  Bb7 {[%clk 0:01:37]} 17. Nc6 {[%clk 0:01:57]}  Bxc6 {[%clk 0:01:33]} 18. Bxc6 {[%clk 0:01:58]}  Rac8 {[%clk 0:01:27]} 19. d5 {[%clk 0:01:58]}  Rfd8 {[%clk 0:01:09]} 20. b3 {[%clk 0:01:43]}  Rd6 {[%clk 0:01:08]} 21. Rd2 {[%clk 0:01:19]}  Rcd8 {[%clk 0:01:01]} 22. Rcd1 {[%clk 0:01:18]}  h5 {[%clk 0:01:02]} 23. g3 {[%clk 0:01:13]}  h4 {[%clk 0:00:59]} 24. Qe4 {[%clk 0:01:10]}  f5 {[%clk 0:00:48]} 25. Qxh4 {[%clk 0:00:57]}  Qxh4 {[%clk 0:00:47]} 26. gxh4 {[%clk 0:00:58]}  Kf8 {[%clk 0:00:47]} 27. Kf1 {[%clk 0:00:42]}  Bf6 {[%clk 0:00:43]} 28. h5 {[%clk 0:00:39]}  gxh5 {[%clk 0:00:42]} 29. Ke2 {[%clk 0:00:39]}  Ke7 {[%clk 0:00:40]} 30. f4 {[%clk 0:00:33]}  Kf8 {[%clk 0:00:38]} 31. dxe6 {[%clk 0:00:25]}  Rxd2+ {[%clk 0:00:32]} 32. Rxd2 {[%clk 0:00:26]}  Rxd2+ {[%clk 0:00:32]} 33. Kxd2 {[%clk 0:00:27]}  Ke7 {[%clk 0:00:32]} 34. Bd7 {[%clk 0:00:17]}  Bg7 {[%clk 0:00:25]} 35. Kd3 {[%clk 0:00:16]}  Bh6 {[%clk 0:00:23]} 36. Kc4 {[%clk 0:00:16]}  Kd6 {[%clk 0:00:22]} 37. Kb5 {[%clk 0:00:15]}  Bg7 {[%clk 0:00:21]} 38. Ka6 {[%clk 0:00:12]}  Bc3 {[%clk 0:00:20]} 39. Kxa7 {[%clk 0:00:13]}  Bd2 {[%clk 0:00:21]} 40. Kxb6 {[%clk 0:00:13]}  Bxe3 {[%clk 0:00:21]} 41. Kb5 {[%clk 0:00:10]}  Bxf4 {[%clk 0:00:21]} 42. h3 {[%clk 0:00:11]}  Be3 {[%clk 0:00:21]} 43. Kc4 {[%clk 0:00:10]}  f4 {[%clk 0:00:21]} 44. Kd3 {[%clk 0:00:10]}  c4+ {[%clk 0:00:11]} 45. Kxc4 {[%clk 0:00:08]}  f3 {[%clk 0:00:11]} 46. Kd3 {[%clk 0:00:09]}  f2 {[%clk 0:00:11]} 47. Ke2 {[%clk 0:00:09]}  h4 {[%clk 0:00:11]} 48. Bb5 {[%clk 0:00:08]}  Bc5 {[%clk 0:00:09]} 49. Bc4 {[%clk 0:00:08]}  Ke7 {[%clk 0:00:09]} 50. Kf3 {[%clk 0:00:08]} 1-0


[Site "https://www.chess.com"]